Cogmind - Beta 13 @@@ ROGUE MODE // 2024.07.04 @ 18:31:52 Player: Cash Money Result: Destroyed by P-60 Hacker with Shock Rifle Performance ------------- Evolutions (0) 0 Regions Visited (3) 600 Robots Destroyed (14) 70 Value Destroyed (254) 254 Prototype IDs (2) 40 Alien Tech Used (0) 0 Bonus (0) 0 TOTAL SCORE: 964 Bonus ------- None Cogmind --------- Core Integrity 0/250 Matter 276/300 Energy 125/125 System Corruption 1% Temperature Cool (6) Movement Treading (160) Location -9/Recycling Parts ------- > --- POWER (1) -------- Light Ion Engine > --- PROPULSION (2) --- Improved Treads > --- UTILITY (2) ------ Structural Scanner Sensor Array > --- WEAPON (2) ------- Autogun Shotgun > --- INVENTORY (5) ---- Disposable Heat Sink Small Storage Unit Subdweller Optics ECM Suite Peak State ------------ > --- POWER ------------ Light Ion Engine > --- PROPULSION ------- Improved Treads Aluminum Leg > --- UTILITY ---------- Structural Scanner Sensor Array > --- WEAPON ----------- Autogun Shotgun > --- INVENTORY -------- Disposable Heat Sink Small Storage Unit Subdweller Optics ECM Suite [Rating: 10] Favorites ----------- Power Light Ion Engine Engine Light Ion Engine Propulsion Aluminum Leg Treads Improved Treads Leg Aluminum Leg Utility Sensor Array Device Sensor Array Storage Small Storage Unit Weapon EM Pulse Gun Energy Gun EM Pulse Gun Energy Cannon Beam Cannon Ballistic Gun Autogun Special Weapon Mining Laser Build | -11 -10 -10 -9 ------- Run | Yrd Mat Sub Rec Slots Evolved . | . . . . Power . | . . . . Propulsion . | . . . . Utility . | . . . . Weapon . | . . . . Parts Attached 21 | 4 7 5 5 Power 4 | 1 . 2 1 Engine 4 | 1 . 2 1 Core . | . . . . Reactor . | . . . . Propulsion 5 | 2 . 1 2 Treads 1 | . . . 1 Leg 4 | 2 . 1 1 Wheel . | . . . . Hover . | . . . . Flight . | . . . . Utility 3 | 1 2 . . Device 2 | . 2 . . Storage 1 | 1 . . . Processor . | . . . . Hackware . | . . . . Protection . | . . . . Artifact . | . . . . Weapon 9 | . 5 2 2 Energy Gun 5 | . 3 2 . Energy Cannon 1 | . 1 . . Ballistic Gun 2 | . . . 2 Ballistic Cannon . | . . . . Launcher . | . . . . Special Weapon 1 | . 1 . . Impact Weapon . | . . . . Slashing Weapon . | . . . . Piercing Weapon . | . . . . Special Melee Weapon . | . . . . Unidentified Prototypes . | . . . . Parts Lost 8 | . . 7 1 Power 1 | . . 1 . Propulsion 3 | . . 2 1 Utility . | . . . . Weapon 4 | . . 4 . Highest Loss Streak 4 | . . 4 1 To Critical Strikes . | . . . . Average Slot Usage (%) 93 | . 98 91 81 Engine 12 | . 14 12 7 Treads 1 | . . . 10 Leg 24 | . 28 25 13 Device 26 | . 25 28 28 Energy Gun 19 | . 25 22 . Ballistic Gun 3 | . . . 21 Special Weapon 1 | . 1 1 . Naked Turns . | . . . . Heaviest Build 13 | 8 13 9 11 Greatest Support 30 | 20 20 30 23 Greatest Overweight (x) 1 | . . 1 . Average Overweight (x) . | . . . . Largest Inventory Capacity 8 | 8 8 5 5 Average Capacity 5 | 6 5 5 5 Most Carried 5 | 4 5 5 5 Average Carried 3 | 3 3 2 4 Final Capacity 8 | 8 5 5 5 Final Carried 5 | 4 5 5 4 Class Distribution -------------------- 100% | Mutant Dominant Class ---------------- Mutant | -10/Materials Mutant | -10/Subcaves Mutant | -9/Recycling Resources | -11 -10 -10 -9 ----------- Run | Yrd Mat Sub Rec Matter Collected 389 | 191 103 45 50 Remotely . | . . . . Salvage Created 384 | . 167 172 45 Parts 31 | . 11 17 3 Haulers Intercepted 1 | . . . 1 Recyclers Shooed . | . . . . Parts Field Recycled . | . . . . Retrieved Matter . | . . . . Parts Self-Destructed 14 | . . 14 . Prevented . | . . . . Kills | -11 -10 -10 -9 ------- Run | Yrd Mat Sub Rec Combat Hostiles Destroyed 9 | . 4 5 . Guns 8 | . 3 5 . Classes Destroyed 7 | . 4 2 1 Hauler 1 | . . . 1 Operator 1 | . 1 . . Turret 1 | . . 1 . Watcher 2 | . 2 . . Swarmer 6 | . 3 3 . Grunt 1 | . 1 . . Subdweller 2 | . . 2 . Best Kill Streak 3 | . 3 3 1 Combat Bots Only 3 | . 3 3 . Max Kills in Single Turn 1 | . 1 1 1 Gunslinging . | . . . . Exploded . | . . . . Melee . | . . . . Uniques/NPCs Destroyed . | . . . . Combat | -11 -10 -10 -9 -------- Run | Yrd Mat Sub Rec Hostile Shots Fired 124 | . 19 95 10 Missed 52 | . 8 39 5 Damage Taken 858 | . 105 684 69 Core 256 | . 20 222 14 Absorbed by Shields . | . . . . Core Remaining (%) 100 | 100 . . . Volleys Fired 63 | . 22 38 3 Largest 2 | . 2 2 2 Hottest 100 | . 100 90 46 Shots Fired 92 | . 40 46 6 Gun 83 | . 31 46 6 Cannon 5 | . 5 . . Launcher . | . . . . Special 4 | . 4 . . Kinetic 6 | . . . 6 Thermal 47 | . 9 38 . Explosive . | . . . . Electromagnetic 39 | . 31 8 . Robot Hit Streak 18 | . 6 18 8 Robot Miss Streak 3 | . 2 3 1 Penetration Max . | . . . . Secondary Targets . | . . . . Shots Hit Robots 56 | . 16 34 6 Core Hits 21 | . 7 12 2 Critical Kills . | . . . . Critical Parts Destroyed . | . . . . Critical Strikes 3 | . 1 2 . Burn 2 | . . 2 . Corrupt 1 | . 1 . . Melee Attacks . | . . . . Impact . | . . . . Slashing . | . . . . Piercing . | . . . . Sneak Attacks . | . . . . Combat Hostiles . | . . . . Follow-up Attacks . | . . . . Damage Inflicted 758 | . 233 418 107 Guns 740 | . 215 418 107 Cannons 18 | . 18 . . Explosions . | . . . . Melee . | . . . . Ramming . | . . . . Kinetic 107 | . . . 107 Thermal 346 | . 18 328 . Explosive . | . . . . Electromagnetic 305 | . 215 90 . Impact . | . . . . Slashing . | . . . . Piercing . | . . . . Highest Corruption . | . . . . Average Corruption . | . . . . Corruption Purged . | . . . . Corruption Blocked . | . . . . Overload Shots . | . . . . Overflow Damage . | . . . . Projectiles . | . . . . Explosions . | . . . . Melee . | . . . . Knockbacks . | . . . . Impact . | . . . . Kinetic . | . . . . Secondary . | . . . . Self-Inflicted Damage . | . . . . Shots . | . . . . Rammed . | . . . . Targets Rammed . | . . . . Kicked . | . . . . Crushed . | . . . . Highest Temperature 117 | . 117 3 12 Average Temperature 37 | . 39 3 6 Received Heat Transfer 258 | . 30 228 . Siege Activations . | . . . . Robots Corrupted 1 | . 1 . . Combat Hostiles 1 | . 1 . . Parts Fried . | . . . . Impact Corruptions . | . . . . Robots Melted . | . . . . Combat Hostiles . | . . . . Parts Melted . | . . . . Heat Transferred 1147 | . 37 1110 . Parts Sabotaged . | . . . . Parts Stolen . | . . . . Parts Stripped . | . . . . Power Chain Reactions . | . . . . Alert | -11 -10 -10 -9 ------- Run | Yrd Mat Sub Rec Peak Influence 497 | . 94 . 497 Initial 492 | . . . 492 Average 153 | . 49 . 492 Maximum Alert Level 2 | . . . 2 Low Security (%) 75 | 100 100 . . Level 1 . | . . . . Level 2 24 | . . . 100 Level 3 . | . . . . Level 4 . | . . . . Level 5 . | . . . . High Security . | . . . . Max Security . | . . . . Squads Dispatched 1 | . 1 . . Investigation 1 | . 1 . . Extermination . | . . . . Reinforcement . | . . . . Assault . | . . . . Garrison . | . . . . Intercept . | . . . . Searches Triggered . | . . . . Construction Impeded . | . . . . Haulers Reinforced . | . . . . Active Scanning Responses . | . . . . Cargo Convoy Interrupts . | . . . . Stealth | -11 -10 -10 -9 --------- Run | Yrd Mat Sub Rec Distress Signals . | . . . . Communications Jammed . | . . . . Distress Signals . | . . . . Times Spotted 54 | . 8 43 3 Peak Tracking Total 5 | . 3 5 3 Tactical Retreats 6 | . 1 5 . Traps | -11 -10 -10 -9 ------- Run | Yrd Mat Sub Rec Traps Triggered 3 | . 1 2 . Indirectly . | . . . . Trap Hack Attempts . | . . . . Triggered . | . . . . Disarmed . | . . . . Reprogrammed . | . . . . Reused . | . . . . Traps Extracted . | . . . . Installed . | . . . . Triggered . | . . . . Machines | -11 -10 -10 -9 ---------- Run | Yrd Mat Sub Rec Machines Disabled . | . . . . Max in Single Turn . | . . . . Machines Repaired . | . . . . Machines Dismantled . | . . . . Machines Sabotaged . | . . . . Overloaded Fab Kills . | . . . . Hacking | -11 -10 -10 -9 --------- Run | Yrd Mat Sub Rec Machines Accessed 8 | . 3 1 4 Terminals 5 | . 2 . 3 Fabricators . | . . . . Repair Stations . | . . . . Recycling Units 2 | . 1 . 1 Scanalyzers . | . . . . Garrison Access . | . . . . Total Hacks 15 | . 5 1 9 Successful 9 | . 4 1 4 Failed 6 | . 1 . 5 Catastrophic 3 | . 1 . 2 Database Lockouts . | . . . . Manual . | . . . . Terminals 6 | . 2 . 4 Fabricators . | . . . . Repair Stations . | . . . . Recycling Units 8 | . 3 . 5 Scanalyzers . | . . . . Garrison Access . | . . . . Terminal Hacks 4 | . 1 1 2 Record 2 | . 1 1 . Part Schematic 1 | . . . 1 Prototype ID Bank 1 | . . . 1 Fabricator Hacks . | . . . . Repair Station Hacks . | . . . . Recycling Unit Hacks 5 | . 3 . 2 Process 1 | . 1 . . Report Inventory 2 | . 1 . 1 Retrieve Matter 1 | . 1 . . Retrieve Components 1 | . . . 1 Scanalyzer . | . . . . Garrison Access Hacks . | . . . . Unauthorized Hacks . | . . . . Terminals . | . . . . Fabricators . | . . . . Repair Stations . | . . . . Recycling Units . | . . . . Scanalyzers . | . . . . Garrison Access . | . . . . Data Cores Recovered 1 | . 1 . . Used . | . . . . Hacking Detections 5 | . 2 . 3 Full Trace Events . | . . . . Feedback Events . | . . . . Feedback Blocked . | . . . . Robot Schematics Acquired . | . . . . Robots Built . | . . . . Authchips . | . . . . Time . | . . . . Total Robot Build Rating . | . . . . Part Schematics Acquired 1 | . . . 1 Parts Built . | . . . . Authchips . | . . . . Time . | . . . . Total Part Build Rating . | . . . . Parts Repaired . | . . . . Time . | . . . . Parts Recycled . | . . . . Recycled Matter 16 | . 16 . . Retrieved Matter 16 | . 16 . . Retrieved Components 3 | . . . 3 Parts Scanalyzed . | . . . . Part Schematics Acquired . | . . . . Parts Damaged . | . . . . Bothacking | -11 -10 -10 -9 ------------ Run | Yrd Mat Sub Rec Used RIF Installer . | . . . . Robots Hacked . | . . . . Non-combat . | . . . . Combat . | . . . . Robot Hacks Applied . | . . . . Relay Couplers Released . | . . . . Fabnet Peak Effective % . | . . . . Robots Rewired 1 | . . . 1 Allies Hacked . | . . . . Hacks Repelled . | . . . . Allies | -11 -10 -10 -9 -------- Run | Yrd Mat Sub Rec Total Allies 1 | . . . 1 Largest Group 1 | . . . 1 Highest-Rated Group 8 | . . . 8 Highest-Rated Ally 8 | . . . 8 Total Orders . | . . . . Ally Attacks 2 | . . . 2 Total Damage 23 | . . . 23 Kills . | . . . . Allies Corrupted . | . . . . Allies Melted . | . . . . Intel | -11 -10 -10 -9 ------- Run | Yrd Mat Sub Rec Robot Analysis Total . | . . . . Derelict Logs Recovered 1 | . . 1 . Drone Launches . | . . . . Drone Recoveries . | . . . . Exploration | -11 -10 -10 -9 ------------- Run | Yrd Mat Sub Rec Turns Passed 1345 | 70 595 466 214 Spaces Moved 888 | 55 382 311 140 Core 39 | 7 . 20 12 Treads 89 | . . . 89 Legs 760 | 48 382 291 39 Wheels . | . . . . Hover . | . . . . Flight . | . . . . Fastest Speed 50 | 50 120 50 50 Average Speed 121 | 111 120 117 139 Slowest Speed 160 | 120 120 130 160 Overloaded Moves . | . . . . Propulsion Burnouts . | . . . . Robots Hopped . | . . . . Cave-ins Triggered . | . . . . Exploration Rate (%) 24 | 4 37 22 34 Regions Visited 3 Branch Regions 2 Pre-discovered Areas . | . . . . Known Exits Taken . | . . . . Unknown Exits Taken 3 | 1 1 1 . Scrap Searched . | . . . . Spaces Dug 4 | . 4 . . Terrain Destroyed 4 | . 4 . . Melee . | . . . . Projectile 4 | . 4 . . AOE . | . . . . Terrain Rammed . | . . . . Walls Destroyed . | . . . . Machines Disabled . | . . . . Actions | -11 -10 -10 -9 --------- Run | Yrd Mat Sub Rec Total 1047 | 62 470 363 152 Wait 61 | . 55 6 . Move 885 | 54 381 310 140 Hop . | . . . . Pick Up 7 | 4 1 2 . Fast Attach 12 | 4 4 . 4 Attach 5 | . 2 2 1 Detach 3 | . 3 . . Swap 4 | . 1 3 . Drop 3 | . 1 2 . Fire 63 | . 22 38 3 Melee . | . . . . Ram . | . . . . Kick . | . . . . Crush . | . . . . Escape Stasis . | . . . . Rewire 4 | . . . 4 Trap . | . . . . Miscellaneous . | . . . . Route ------- -11/Scrapyard -10/Materials (discovered 2 exits: [*Min] / *Sub) -10/Subcaves (discovered 2 exits: Mat / *Rec) -9/Recycling History --------- Turn | Location | Event 5 | -11/Scrapyard | Discovered new exit (range 16) 71 | -11/Scrapyard | Entered Materials 307 | -10/Materials | Build established: Mutant 421 | -10/Materials | Discovered new exit (range 13) 545 | -10/Materials | Discovered new exit (range 5) 666 | -10/Materials | Entered Subcaves 771 | -10/Subcaves | Shifting Twisted Machinery released Sub. Monowheel 952 | -10/Subcaves | Ambushed by Subdwellers from Twisted Machinery 981 | -10/Subcaves | Visited Clippyterm 1059 | -10/Subcaves | Identified exit to Materials 1066 | -10/Subcaves | Core integrity fell below 50% 1111 | -10/Subcaves | Discovered new exit (range 10) 1119 | -10/Subcaves | Core integrity fell below 20% 1132 | -10/Subcaves | Entered Recycling 1157 | -9/Recycling | Lost 4 parts (1p2n1w) 1346 | -9/Recycling | Destroyed by P-60 Hacker with Shock Rifle Last Messages --------------- Rating: 4 Schematic downloaded. 01301_ Connecting with Terminal... >>Prototypes Downloading prototype IDs... Adv. EMP Blaster Imp. EM Shotgun 01312_ Connecting with Terminal... 01335_ Attempting to rewire G-34 Mercenary. 01336_ L-31 Rogue springs to life. 01337_ Attempting to rewire G-34 Mercenary. 01337_ S-10 Pest springs to life. 01337_ P-60 Hacker springs to life. 01337_ Aluminum Leg destroyed. 01338_ Attempting to rewire G-34 Mercenary. 01338_ G-34 Mercenary rewired. 01340_ P-60 Hacker fails to hack Mercenary 2a. 01342_ Mercenary 2a destroyed. 01344_ Destroyed Imp. Aluminum Leg. 01344_ A-02 Transporter destroyed. Map ----- +----------------------------------------------------+ | ?????????????????????????????????????????????????? | | ?????????????????????????????????????????????????? | | ?????????????????????????????????????????????????? | | ?????????????????????????????????????????????????? | | ?????????????????????????????????????????????????? | | ?????????????????????????????????????????????????? | | ?????????????????????????????????????????????????? | | ?????????????????????????????????????????????????? | | ?????????????????????????????????????????????????? | | ?????????????????????????????????????????????????? | | ????????????????????????????? # ??????????????? | | ???????????????????????????? # ??????????????? | | ?????????????? + ??????????????? | | ??????????????############### # ??????????????? | | ?????????????? # ! # # ??????????????? | | ?????????????? +!u g k # # ??????????????? | | ?????????????? # l u! # ##??????????????? | | ??????????????##d *! u g# #??????????????? | | ??????????????## gk ] # ##??????????????? | | ??????????????## s # ##??????????????? | | ??????????????## p r] # ##??????????????? | | ?? ? ??????## i # ##??????????????? | | ?? ##????## g h # ###?????????????? | | ?? ##????## i !=!l # ###?????????????? | | ?? ##????## ] | sal* # T##?????####????? | | ?? ####?### % @ # ###??############ | | ?? ####?#########+###### ##???##### ###### | | ?+ ####### ## | | ?## ########### ##+#####+####### ## | | ?## # # # ### ## | | ?## # # ?# ### ## | | ### # """ """ + + "T" ### ## | | ### """ # """ """ # # ### ## | | """ # """ """ # #######"T"###### ## | | """ # # #######"""###### ## | | """ # # #"""############ ## | | """ + # #"Y"####### #########+#### | | ## #####+##### ? | | ### ##### ##### | | ### | | ###+##+######## ####+##+######################## | | # |%!![ # # ################## | | # ! / + + ##???????????????? | | # ! % ##### ##???????????????? | | # !![ ##### ##???????????????? | | ################?######## ## #####???????????????? | | ################?#################???????????????? | | ????????????????????????#######??????????????????? | | | | | +----------------------------------------------------+ Best States ------------- Heat Dissipation 25 Energy Generation 10 Energy Capacity 250 Matter Stores 300 Matter Capacity 300 Sight Range 16 Robot Scan Range 14 Terrain Scan Density 10 Evasion (%) 55 Recoil Reduction 1 Item Schematics ----------------- Imp. Carbon-fiber Leg | -9/Recycling | Hacked Robot Schematics ------------------ None Fabricated ------------ Nothing Alien Tech Used ----------------- None Achievements -------------- None Challenges ------------ None Game ------ Seed ForceDisruptorStabilizer Manual? 0 Play Time 00:16:00 Cumulative 34.5 hours Start 2024.07.04 @ 18:14:05 End 2024.07.04 @ 18:31:52 Sessions 1 Manual Loads 0 Difficulty Rogue Special Mode None Game No. 18 Rogue 12 Adventurer 5 Explorer 1 Win Type - Total 1 Types 1/0/0/0/0/0/0/0/0 Lore% 27 Gallery% 41 Achievement% 37 Wizard Run 0 Options --------- Layout 1 ASCII 0 Keyboard 0 Movement Mouse Keybinds 0 Fullscreen 2 Font 32/SmallcapsGlow Map View 50x35 Zoom Use 0% Tactical HUD 1 Map Filters NONE Filters NONE Steam 1 RUN: b4413e58-8e35-4576-a7df-d1e5df909e54